Workbook

Sheet Thermal Dem Profiler
A1: Simulation 1 Jan to 31 Dec | D1: HEM Output total | E1: 445.7 | F1: Heat Requirement | G1: 371.4 | H1: DHW req | I1: 74.4 | K1: Step 1 | L1: Take HEM consumption of kwhr/m2/annum times the area of the property and enter in the yellow cell
A2: Base Comsumption | B2: =SUM(D6:D17525) -> 13999.9006 | C2: kWhr | D2: Scaling Factor | E2: =B3/B2 -> 3.183594032 | F2: Fraction DHW to Total | G2: =I1/E1*100 -> 16.69284272 | H2: % | K2: Step 2 | L2: Press Ctrl + e to run the macro to see the new load vs no. of hours curve and new demand profile
A3: Apply New Consumption | B3: 44570 | C3: kWhr | D3: House Floor Area | E3: 100 | K3: Step 3 | L3: The quick chart of power to unsatisfied demand is then updated automatically
D4: Heat Loss W/m2 | E4: =E1/8.76 -> 50.87899543 | K4: Step 4 | L4: The demand profile and the average loads area shown in table 2 below
A5: Day | B5: Hours | C5: Base Load Power Reqd | D5: Base Energy Consumption | E5: New Load Power Reqd | F5: New Energy Consumption | G5: Average loading | H5: No. of cumulative hrs | I5: Actual Frequency | J5: New Load Power Reqd | L5: Unsatisfied Demand % | M5: Load kW | N5: Table 1
A6: =INT(B6/24)+1 -> 1 | B6: 0.5 | C6: 0.7794 | D6: =C6*0.5 -> 0.3897 | E6: =C6*$E$2 -> 2.481293189 | F6: =E6*0.5 -> 1.240646594 | G6: =IF(A6<=$N$42,$O$42,IF(A6<=$N$43,$O$43,IF(A6<=$N$44,$O$44,IF(A6<=$N$45,$O$45,IF(A6<=$N$46,$O$46,IF(A6<=$N$47,$O$47,IF(A6<=$N$48,$O$48,IF(A6<=$N$49,$O$49,IF(A6<=$N$50,$O$50,IF(A6<=$N$51,$O$51,IF(A6<=$N$52,$O$52,IF(A6<=$N$53,$O$53)))))))))))) -> 7.657915354 | H6: =I6*8760 -> 0.5 | I6: =1/17520 -> 5.707762557e-05 | J6: 16.40506005 | L6: 0.05 | M6: =J881 -> 10.68668845
A7: =INT(B7/24)+1 -> 1 | B7: 1 | C7: 0.6483 | D7: =C7*0.5 -> 0.32415 | E7: 2.063924011 | F7: =E7*0.5 -> 1.031962006 | G7: =IF(A7<=$N$42,$O$42,IF(A7<=$N$43,$O$43,IF(A7<=$N$44,$O$44,IF(A7<=$N$45,$O$45,IF(A7<=$N$46,$O$46,IF(A7<=$N$47,$O$47,IF(A7<=$N$48,$O$48,IF(A7<=$N$49,$O$49,IF(A7<=$N$50,$O$50,IF(A7<=$N$51,$O$51,IF(A7<=$N$52,$O$52,IF(A7<=$N$53,$O$53)))))))))))) -> 7.657915354 | H7: =I7*8760 -> 1 | I7: =1/17520+I6 -> 0.0001141552511 | J7: 16.37131395 | L7: 0.1 | M7: =J1757 -> 9.57529577
A8: 1 | B8: 1.5 | C8: 0.5431 | D8: 0.27155 | E8: 1.729009919 | F8: 0.8645049594 | G8: 7.657915354 | H8: 1.5 | I8: =1/17520+I7 -> 0.0001712328767 | J8: 16.14496041 | L8: 0.15 | M8: =J2633 -> 8.810278124
A9: 1 | B9: 2 | C9: 0.5166 | D9: 0.2583 | E9: 1.644644677 | F9: 0.8223223385 | G9: 7.657915354 | H9: 2 | I9: =1/17520+I8 -> 0.0002283105023 | J9: 15.95872016 | L9: 0.2 | M9: =J3509 -> 8.002918678
A10: 1 | B10: 2.5 | C10: 0.4569 | D10: 0.22845 | E10: 1.454584113 | F10: 0.7272920566 | G10: 7.657915354 | H10: 2.5 | I10: 0.0002853881279 | J10: 15.82596429 | L10: 0.25 | M10: =J4385 -> 7.397399093
A11: 1 | B11: 3 | C11: 0.4316 | D11: 0.2158 | E11: 1.374039184 | F11: 0.6870195921 | G11: 7.657915354 | H11: 3 | I11: 0.0003424657534 | J11: 15.67792717 | L11: 0.3 | M11: =J5261 -> 6.805250603
A12: 1 | B12: 3.5 | C12: 0.4435 | D12: 0.22175 | E12: 1.411923953 | F12: 0.7059619766 | G12: 7.657915354 | H12: 3.5 | I12: 0.000399543379 | J12: 15.47640567 | L12: 0.35 | M12: =J6137 -> 6.240799381
A13: 1 | B13: 4 | C13: 0.4692 | D13: 0.2346 | E13: 1.49374232 | F13: 0.7468711599 | G13: 7.657915354 | H13: 4 | I13: 0.0004566210046 | J13: 15.38694668 | L13: 0.4 | M13: =J7013 -> 5.721873554
A14: 1 | B14: 4.5 | C14: 2.1197 | D14: 1.05985 | E14: 6.74826427 | F14: 3.374132135 | G14: 7.657915354 | H14: 4.5 | I14: 0.0005136986301 | J14: 15.26246815 | L14: 0.45 | M14: =J7889 -> 5.141504362
A15: 1 | B15: 5 | C15: 2.1592 | D15: 1.0796 | E15: 6.874016234 | F15: 3.437008117 | G15: 7.657915354 | H15: 5 | I15: 0.0005707762557 | J15: 15.19433924 | L15: 0.5 | M15: =J8765 -> 4.618121503
A16: 1 | B16: 5.5 | C16: 2.2327 | D16: 1.11635 | E16: 7.108010395 | F16: 3.554005198 | G16: 7.657915354 | H16: 5.5 | I16: 0.0006278538813 | J16: 15.11570446 | L16: 0.55 | M16: =J9641 -> 4.10237927
A17: 1 | B17: 6 | C17: 2.3173 | D17: 1.15865 | E17: 7.377342451 | F17: 3.688671225 | G17: 7.657915354 | H17: 6 | I17: 0.0006849315068 | J17: 14.979765 | L17: 0.6 | M17: =J10517 -> 3.678961263
A18: 1 | B18: 6.5 | C18: 2.2586 | D18: 1.1293 | E18: 7.190465481 | F18: 3.59523274 | G18: 7.657915354 | H18: 6.5 | I18: 0.0007420091324 | J18: 14.96002672 | L18: 0.65 | M18: =J11393 -> 3.217340129
A19: 1 | B19: 7 | C19: 2.5179 | D19: 1.25895 | E19: 8.015971413 | F19: 4.007985707 | G19: 7.657915354 | H19: 7 | I19: 0.000799086758 | J19: 14.90622398 | L19: 0.7 | M19: =J12269 -> 2.824166266
A20: 1 | B20: 7.5 | C20: 2.989 | D20: 1.4945 | E20: 9.515762562 | F20: 4.757881281 | G20: 7.657915354 | H20: 7.5 | I20: 0.0008561643836 | J20: 14.77569662 | L20: 0.75 | M20: =J13145 -> 2.338668176
A21: 1 | B21: 8 | C21: 3.3179 | D21: 1.65895 | E21: 10.56284664 | F21: 5.28142332 | G21: 7.657915354 | H21: 8 | I21: 0.0009132420091 | J21: 14.66745442 | L21: 0.8 | M21: =J14021 -> 1.906654466
A22: 1 | B22: 8.5 | C22: 3.0347 | D22: 1.51735 | E22: 9.661252809 | F22: 4.830626405 | G22: 7.657915354 | H22: 8.5 | I22: 0.0009703196347 | J22: 14.45542706 | L22: 0.85 | M22: =J14897 -> 1.588613422
A23: 1 | B23: 9 | C23: 2.9027 | D23: 1.45135 | E23: 9.241018397 | F23: 4.620509198 | G23: 7.657915354 | H23: 9 | I23: 0.00102739726 | J23: 14.21156376 | L23: 0.9 | M23: =J15773 -> 1.443759894
A24: 1 | B24: 9.5 | C24: 2.7491 | D24: 1.37455 | E24: 8.752018354 | F24: 4.376009177 | G24: 7.657915354 | H24: 9.5 | I24: 0.001084474886 | J24: 14.0488821 | L24: 0.95 | M24: =J16649 -> 1.311959101
A25: 1 | B25: 10 | C25: 2.7358 | D25: 1.3679 | E25: 8.709676553 | F25: 4.354838276 | G25: 7.657915354 | H25: 10 | I25: 0.001141552511 | J25: 14.02882546 | L25: 1 | M25: =J17525 -> 0
A26: 1 | B26: 10.5 | C26: 2.7132 | D26: 1.3566 | E26: 8.637727328 | F26: 4.318863664 | G26: 7.657915354 | H26: 10.5 | I26: 0.001198630137 | J26: 14.02532351
A27: 1 | B27: 11 | C27: 2.5406 | D27: 1.2703 | E27: 8.088238998 | F27: 4.044119499 | G27: 7.657915354 | H27: 11 | I27: 0.001255707763 | J27: 14.00526687
A28: 1 | B28: 11.5 | C28: 2.3977 | D28: 1.19885 | E28: 7.633303411 | F28: 3.816651705 | G28: 7.657915354 | H28: 11.5 | I28: 0.001312785388 | J28: 13.94000319
A29: 1 | B29: 12 | C29: 2.4047 | D29: 1.20235 | E29: 7.655588569 | F29: 3.827794284 | G29: 7.657915354 | H29: 12 | I29: 0.001369863014 | J29: 13.91135084
A30: 1 | B30: 12.5 | C30: 2.4712 | D30: 1.2356 | E30: 7.867297572 | F30: 3.933648786 | G30: 7.657915354 | H30: 12.5 | I30: 0.001426940639 | J30: 13.84799732
A31: 1 | B31: 13 | C31: 2.4277 | D31: 1.21385 | E31: 7.728811232 | F31: 3.864405616 | G31: 7.657915354 | H31: 13 | I31: 0.001484018265 | J31: 13.77636646
A32: 1 | B32: 13.5 | C32: 2.38 | D32: 1.19 | E32: 7.576953796 | F32: 3.788476898 | G32: 7.657915354 | H32: 13.5 | I32: 0.00154109589 | J32: 13.76777075
A33: 1 | B33: 14 | C33: 2.3466 | D33: 1.1733 | E33: 7.470621756 | F33: 3.735310878 | G33: 7.657915354 | H33: 14 | I33: 0.001598173516 | J33: 13.76713403
A34: 1 | B34: 14.5 | C34: 2.4437 | D34: 1.22185 | E34: 7.779748736 | F34: 3.889874368 | G34: 7.657915354 | H34: 14.5 | I34: 0.001655251142 | J34: 13.71715161
A35: 1 | B35: 15 | C35: 2.4659 | D35: 1.23295 | E35: 7.850424524 | F35: 3.925212262 | G35: 7.657915354 | H35: 15 | I35: 0.001712328767 | J35: 13.6999602
A36: 1 | B36: 15.5 | C36: 2.5404 | D36: 1.2702 | E36: 8.087602279 | F36: 4.04380114 | G36: 7.657915354 | H36: 15.5 | I36: 0.001769406393 | J36: 13.69359301
A37: 1 | B37: 16 | C37: 2.693 | D37: 1.3465 | E37: 8.573418728 | F37: 4.286709364 | G37: 7.657915354 | H37: 16 | I37: 0.001826484018 | J37: 13.67608324
A38: 1 | B38: 16.5 | C38: 3.2731 | D38: 1.63655 | E38: 10.42022163 | F38: 5.210110813 | G38: 7.657915354 | H38: 16.5 | I38: 0.001883561644 | J38: 13.67544652
A39: 1 | B39: 17 | C39: 3.4069 | D39: 1.70345 | E39: 10.84618651 | F39: 5.423093254 | G39: 7.657915354 | H39: 17 | I39: 0.001940639269 | J39: 13.66525902
A40: 1 | B40: 17.5 | C40: 3.7856 | D40: 1.8928 | E40: 12.05181357 | F40: 6.025906784 | G40: 7.657915354 | H40: 17.5 | I40: 0.001997716895 | J40: 13.66366723 | Q40: TABLE 2
A41: 1 | B41: 18 | C41: 3.8487 | D41: 1.92435 | E41: 12.25269835 | F41: 6.126349176 | G41: 7.657915354 | H41: 18 | I41: 0.002054794521 | J41: 13.65507152 | L41: Month | M41: Days | N41: Cumulative | O41: Average Load | Q41: Peak load | R41: =MAX(E6:E17525) -> 16.40506005
A42: 1 | B42: 18.5 | C42: 4.0107 | D42: 2.00535 | E42: 12.76844058 | F42: 6.384220292 | G42: 7.657915354 | H42: 18.5 | I42: 0.002111872146 | J42: 13.65475316 | L42: Jan | M42: 31 | N42: 31 | O42: =AVERAGE(E6:E1492) -> 7.657915354 | Q42: Wint Average | R42: =AVERAGE(O42:O45,O51:O53) -> 6.51640476
A43: 1 | B43: 19 | C43: 3.9895 | D43: 1.99475 | E43: 12.70094839 | F43: 6.350474196 | G43: 7.657915354 | H43: 19 | I43: 0.002168949772 | J43: 13.64392894 | L43: Feb | M43: 28 | N43: =N42+M43 -> 59 | O43: =AVERAGE(E1493:E2836) -> 7.024911248 | Q43: Summer Average | R43: =AVERAGE(O46:O50) -> 3.118524612
A44: 1 | B44: 19.5 | C44: 3.8382 | D44: 1.9191 | E44: 12.21927061 | F44: 6.109635307 | G44: 7.657915354 | H44: 19.5 | I44: 0.002226027397 | J44: 13.62705589 | L44: Mar | M44: 31 | N44: =N43+M44 -> 90 | O44: =AVERAGE(E2837:E4324) -> 6.160904008 | Q44: Overall Average | R44: =AVERAGE(O42:O53) -> 5.100621365
A45: 1 | B45: 20 | C45: 3.6941 | D45: 1.84705 | E45: 11.76051471 | F45: 5.880257357 | G45: 7.657915354 | H45: 20 | I45: 0.002283105023 | J45: 13.60540746 | L45: Apr | M45: 30 | N45: 120 | O45: =AVERAGE(E4325:E5764) -> 5.786371621 | Q45: Overall Average | R45: =AVERAGE(E6:E17525) -> 5.087899543
A46: 1 | B46: 20.5 | C46: 3.7214 | D46: 1.8607 | E46: 11.84742683 | F46: 5.923713416 | G46: 7.657915354 | H46: 20.5 | I46: 0.002340182648 | J46: 13.59840355 | L46: May | M46: 31 | N46: 151 | O46: =AVERAGE(E5765:E7252) -> 4.491794438
A47: 1 | B47: 21 | C47: 3.7613 | D47: 1.88065 | E47: 11.97445223 | F47: 5.987226116 | G47: 7.657915354 | H47: 21 | I47: 0.002397260274 | J47: 13.58535081 | L47: Jun | M47: 30 | N47: 181 | O47: =AVERAGE(E7253:E8692) -> 3.140109233
A48: 1 | B48: 21.5 | C48: 3.6191 | D48: 1.80955 | E48: 11.52174516 | F48: 5.760872581 | G48: 7.657915354 | H48: 21.5 | I48: 0.0024543379 | J48: 13.57707347 | L48: Jul | M48: 31 | N48: 212 | O48: =AVERAGE(E8693:E10180) -> 1.797177128
A49: 1 | B49: 22 | C49: 3.5718 | D49: 1.7859 | E49: 11.37116116 | F49: 5.685580582 | G49: 7.657915354 | H49: 22 | I49: 0.002511415525 | J49: 13.57006956 | L49: Aug | M49: 31 | N49: 243 | O49: =AVERAGE(E10181:E11668) -> 2.568998637
A50: 1 | B50: 22.5 | C50: 3.3597 | D50: 1.67985 | E50: 10.69592087 | F50: 5.347960435 | G50: 7.657915354 | H50: 22.5 | I50: 0.002568493151 | J50: 13.55001292 | L50: Sep | M50: 30 | N50: 273 | O50: =AVERAGE(E11669:E13108) -> 3.594543625
A51: 1 | B51: 23 | C51: 1.5019 | D51: 0.75095 | E51: 4.781439877 | F51: 2.390719938 | G51: 7.657915354 | H51: 23 | I51: 0.002625570776 | J51: 13.53313987 | L51: Oct | M51: 31 | N51: 304 | O51: =AVERAGE(E13109:E14596) -> 4.689913902
A52: 1 | B52: 23.5 | C52: 1.2776 | D52: 0.6388 | E52: 4.067359735 | F52: 2.033679868 | G52: 7.657915354 | H52: 23.5 | I52: 0.002682648402 | J52: 13.50989963 | L52: Nov | M52: 30 | N52: 334 | O52: =AVERAGE(E14597:E16036) -> 6.749706173
A53: 2 | B53: 24 | C53: 1.0143 | D53: 0.50715 | E53: 3.229119427 | F53: 1.614559713 | G53: 7.657915354 | H53: 24 | I53: 0.002739726027 | J53: 13.50385081 | L53: Dec | M53: 31 | N53: 365 | O53: =AVERAGE(E16037:E17525) -> 7.545111014
A54: 2 | B54: 24.5 | C54: 0.7799 | D54: 0.38995 | E54: 2.482884986 | F54: 1.241442493 | G54: 7.657915354 | H54: 24.5 | I54: 0.002796803653 | J54: 13.4850676
A55: 2 | B55: 25 | C55: 0.6483 | D55: 0.32415 | E55: 2.063924011 | F55: 1.031962006 | G55: 7.657915354 | H55: 25 | I55: 0.002853881279 | J55: 13.48124729
A56: 2 | B56: 25.5 | C56: 0.5495 | D56: 0.27475 | E56: 1.749384921 | F56: 0.8746924603 | G56: 7.657915354 | H56: 25.5 | I56: 0.002910958904 | J56: 13.45896213
A57: 2 | B57: 26 | C57: 0.4938 | D57: 0.2469 | E57: 1.572058733 | F57: 0.7860293665 | G57: 7.657915354 | H57: 26 | I57: 0.00296803653 | J57: 13.45068479
A58: 2 | B58: 26.5 | C58: 0.4917 | D58: 0.24585 | E58: 1.565373186 | F58: 0.7826865928 | G58: 7.657915354 | H58: 26.5 | I58: 0.003025114155 | J58: 13.40961642
A59: 2 | B59: 27 | C59: 0.4638 | D59: 0.2319 | E59: 1.476550912 | F59: 0.738275456 | G59: 7.657915354 | H59: 27 | I59: 0.003082191781 | J59: 13.37587033
A60: 2 | B60: 27.5 | C60: 0.4458 | D60: 0.2229 | E60: 1.41924622 | F60: 0.7096231098 | G60: 7.657915354 | H60: 27.5 | I60: 0.003139269406 | J60: 13.37077658
A61: 2 | B61: 28 | C61: 0.4424 | D61: 0.2212 | E61: 1.408422 | F61: 0.7042109999 | G61: 7.657915354 | H61: 28 | I61: 0.003196347032 | J61: 13.34339767
A62: 2 | B62: 28.5 | C62: 2.228 | D62: 1.114 | E62: 7.093047503 | F62: 3.546523752 | G62: 7.657915354 | H62: 28.5 | I62: 0.003253424658 | J62: 13.32938985
A63: 2 | B63: 29 | C63: 2.2168 | D63: 1.1084 | E63: 7.05739125 | F63: 3.528695625 | G63: 7.657915354 | H63: 29 | I63: 0.003310502283 | J63: 13.31761056
A64: 2 | B64: 29.5 | C64: 2.2906 | D64: 1.1453 | E64: 7.29234049 | F64: 3.646170245 | G64: 7.657915354 | H64: 29.5 | I64: 0.003367579909 | J64: 13.31283516
A65: 2 | B65: 30 | C65: 2.3789 | D65: 1.18945 | E65: 7.573451843 | F65: 3.786725921 | G65: 7.657915354 | H65: 30 | I65: 0.003424657534 | J65: 13.30614962
A66: 2 | B66: 30.5 | C66: 2.4559 | D66: 1.22795 | E66: 7.818588583 | F66: 3.909294292 | G66: 7.657915354 | H66: 30.5 | I66: 0.00348173516 | J66: 13.3039211
A67: 2 | B67: 31 | C67: 2.7258 | D67: 1.3629 | E67: 8.677840613 | F67: 4.338920306 | G67: 7.657915354 | H67: 31 | I67: 0.003538812785 | J67: 13.29882735
A68: 2 | B68: 31.5 | C68: 2.993 | D68: 1.4965 | E68: 9.528496938 | F68: 4.764248469 | G68: 7.657915354 | H68: 31.5 | I68: 0.003595890411 | J68: 13.27113008
A69: 2 | B69: 32 | C69: 3.2123 | D69: 1.60615 | E69: 10.22665911 | F69: 5.113329555 | G69: 7.657915354 | H69: 32 | I69: 0.003652968037 | J69: 13.25807735
A70: 2 | B70: 32.5 | C70: 3.3102 | D70: 1.6551 | E70: =C70*$E$2 -> 10.53833297 | F70: 5.269166483 | G70: 7.657915354 | H70: 32.5 | I70: 0.003710045662 | J70: 13.25616719
A71: =INT(B71/24)+1 -> 2 | B71: 33 | C71: 3.1146 | D71: =C71*0.5 -> 1.5573 | E71: 9.915621972 | F71: =E71*0.5 -> 4.957810986 | G71: =IF(A71<=$N$42,$O$42,IF(A71<=$N$43,$O$43,IF(A71<=$N$44,$O$44,IF(A71<=$N$45,$O$45,IF(A71<=$N$46,$O$46,IF(A71<=$N$47,$O$47,IF(A71<=$N$48,$O$48,IF(A71<=$N$49,$O$49,IF(A71<=$N$50,$O$50,IF(A71<=$N$51,$O$51,IF(A71<=$N$52,$O$52,IF(A71<=$N$53,$O$53)))))))))))) -> 7.657915354 | H71: =I71*8760 -> 33 | I71: 0.003767123288 | J71: 13.24343281
A72: 2 | B72: 33.5 | C72: 3.0063 | D72: 1.50315 | E72: 9.570838739 | F72: 4.785419369 | G72: 7.657915354 | H72: 33.5 | I72: 0.003824200913 | J72: 13.21191523
A73: 2 | B73: 34 | C73: 2.8913 | D73: 1.44565 | E73: 9.204725425 | F73: 4.602362712 | G73: 7.657915354 | H73: 34 | I73: =1/17520+I72 -> 0.003881278539 | J73: 13.21000508
A74: 2 | B74: 34.5 | C74: 2.9216 | D74: 1.4608 | E74: 9.301188324 | F74: 4.650594162 | G74: 7.657915354 | H74: 34.5 | I74: 0.003938356164 | J74: 13.20713984
A75: 2 | B75: 35 | C75: 2.8392 | D75: 1.4196 | E75: 9.038860176 | F75: 4.519430088 | G75: 7.657915354 | H75: 35 | I75: 0.00399543379 | J75: 13.20618476
A76: 2 | B76: 35.5 | C76: 2.7931 | D76: 1.39655 | E76: 8.892096491 | F76: 4.446048246 | G76: 7.657915354 | H76: 35.5 | I76: 0.004052511416 | J76: 13.18580976
A77: 2 | B77: 36 | C77: 2.8182 | D77: 1.4091 | E77: 8.972004701 | F77: 4.486002351 | G77: 7.657915354 | H77: 36 | I77: 0.004109589041 | J77: 13.1854914
A78: 2 | B78: 36.5 | C78: 2.8254 | D78: 1.4127 | E78: 8.994926578 | F78: 4.497463289 | G78: 7.657915354 | H78: 36.5 | I78: 0.004166666667 | J78: 13.17275703
A79: 2 | B79: 37 | C79: 2.771 | D79: 1.3855 | E79: 8.821739063 | F79: 4.410869531 | G79: 7.657915354 | H79: 37 | I79: 0.004223744292 | J79: 13.17212031
A80: 2 | B80: 37.5 | C80: 2.7502 | D80: 1.3751 | E80: 8.755520307 | F80: 4.377760154 | G80: 7.657915354 | H80: 37.5 | I80: 0.004280821918 | J80: 13.16861835
A81: 2 | B81: 38 | C81: 2.7543 | D81: 1.37715 | E81: 8.768573043 | F81: 4.384286521 | G81: 7.657915354 | H81: 38 | I81: 0.004337899543 | J81: 13.16416132
A82: 2 | B82: 38.5 | C82: 2.7049 | D82: 1.35245 | E82: 8.611303497 | F82: 4.305651749 | G82: 7.657915354 | H82: 38.5 | I82: 0.004394977169 | J82: 13.1635246
A83: 2 | B83: 39 | C83: 2.6925 | D83: 1.34625 | E83: 8.571826931 | F83: 4.285913466 | G83: 7.657915354 | H83: 39 | I83: 0.004452054795 | J83: 13.14028437
A84: 2 | B84: 39.5 | C84: 3.0087 | D84: 1.50435 | E84: 9.578479364 | F84: 4.789239682 | G84: 7.657915354 | H84: 39.5 | I84: 0.00450913242 | J84: 13.13105194
A85: 2 | B85: 40 | C85: 3.0704 | D85: 1.5352 | E85: 9.774907116 | F85: 4.887453558 | G85: 7.657915354 | H85: 40 | I85: 0.004566210046 | J85: 13.12181952
A86: 2 | B86: 40.5 | C86: 3.5097 | D86: 1.75485 | E86: 11.17345997 | F86: 5.586729987 | G86: 7.657915354 | H86: 40.5 | I86: 0.004623287671 | J86: 13.10208124
A87: 2 | B87: 41 | C87: 3.8911 | D87: 1.94555 | E87: 12.38768274 | F87: 6.193841369 | G87: 7.657915354 | H87: 41 | I87: 0.004680365297 | J87: 13.07979608
A88: 2 | B88: 41.5 | C88: 4.2121 | D88: 2.10605 | E88: 13.40961642 | F88: 6.704808211 | G88: 7.657915354 | H88: 41.5 | I88: 0.004737442922 | J88: 13.07279217
A89: 2 | B89: 42 | C89: 4.2276 | D89: 2.1138 | E89: 13.45896213 | F89: 6.729481065 | G89: 7.657915354 | H89: 42 | I89: 0.004794520548 | J89: 13.0718371
A90: 2 | B90: 42.5 | C90: 4.2358 | D90: 2.1179 | E90: 13.4850676 | F90: 6.742533801 | G90: 7.657915354 | H90: 42.5 | I90: 0.004851598174 | J90: 13.0702453
A91: 2 | B91: 43 | C91: 4.2673 | D91: 2.13365 | E91: 13.58535081 | F91: 6.792675407 | G91: 7.657915354 | H91: 43 | I91: 0.004908675799 | J91: 13.06929022
A92: 2 | B92: 43.5 | C92: 3.9937 | D92: 1.99685 | E92: 12.71431949 | F92: 6.357159743 | G92: 7.657915354 | H92: 43.5 | I92: 0.004965753425 | J92: 13.06451483
A93: 2 | B93: 44 | C93: 4.0016 | D93: 2.0008 | E93: 12.73946988 | F93: 6.369734939 | G93: 7.657915354 | H93: 44 | I93: 0.00502283105 | J93: 13.05719256
A94: 2 | B94: 44.5 | C94: 3.9979 | D94: 1.99895 | E94: 12.72769058 | F94: 6.36384529 | G94: 7.657915354 | H94: 44.5 | I94: 0.005079908676 | J94: 13.05082538
A95: 2 | B95: 45 | C95: 3.9672 | D95: 1.9836 | E95: 12.62995424 | F95: 6.314977122 | G95: 7.657915354 | H95: 45 | I95: 0.005136986301 | J95: 13.04382147
A96: 2 | B96: 45.5 | C96: 3.8851 | D96: 1.94255 | E96: 12.36858117 | F96: 6.184290587 | G96: 7.657915354 | H96: 45.5 | I96: 0.005194063927 | J96: 13.04254803
A97: 2 | B97: 46 | C97: 4.0584 | D97: 2.0292 | E97: 12.92029802 | F97: 6.46014901 | G97: 7.657915354 | H97: 46 | I97: 0.005251141553 | J97: 13.03554412
A98: 2 | B98: 46.5 | C98: 3.8295 | D98: 1.91475 | E98: 12.19157335 | F98: 6.095786673 | G98: 7.657915354 | H98: 46.5 | I98: 0.005308219178 | J98: 13.02981365
A99: 2 | B99: 47 | C99: 1.5445 | D99: 0.77225 | E99: 4.917060983 | F99: 2.458530491 | G99: 7.657915354 | H99: 47 | I99: 0.005365296804 | J99: 13.0279035
A100: 2 | B100: 47.5 | C100: 1.2395 | D100: 0.61975 | E100: 3.946064803 | F100: 1.973032401 | G100: 7.657915354 | H100: 47.5 | I100: 0.005422374429 | J100: 13.02535662
A101: 3 | B101: 48 | C101: 0.9829 | D101: 0.49145 | E101: 3.129154574 | F101: 1.564577287 | G101: 7.657915354 | H101: 48 | I101: 0.005479452055 | J101: 13.02058123
A102: 3 | B102: 48.5 | C102: 0.7858 | D102: 0.3929 | E102: 2.50166819 | F102: 1.250834095 | G102: 7.657915354 | H102: 48.5 | I102: 0.00553652968 | J102: 13.00912029
A103: 3 | B103: 49 | C103: 0.6536 | D103: 0.3268 | E103: 2.080797059 | F103: 1.04039853 | G103: 7.657915354 | H103: 49 | I103: 0.005593607306 | J103: 13.00307146
A104: 3 | B104: 49.5 | C104: 0.5475 | D104: 0.27375 | E104: 1.743017733 | F104: 0.8715088663 | G104: 7.657915354 | H104: 49.5 | I104: 0.005650684932 | J104: 13.00275311
A105: 3 | B105: 50 | C105: 0.4946 | D105: 0.2473 | E105: 1.574605608 | F105: 0.7873028041 | G105: 7.657915354 | H105: 50 | I105: 0.005707762557 | J105: 12.99606756
A106: 3 | B106: 50.5 | C106: 0.4958 | D106: 0.2479 | E106: 1.578425921 | F106: 0.7892129606 | G106: 7.657915354 | H106: 50.5 | I106: 0.005764840183 | J106: 12.99192889
A107: 3 | B107: 51 | C107: 0.444 | D107: 0.222 | E107: 1.41351575 | F107: 0.7067578751 | G107: 7.657915354 | H107: 51 | I107: 0.005821917808 | J107: 12.98524334
A108: 3 | B108: 51.5 | C108: 0.4697 | D108: 0.23485 | E108: 1.495334117 | F108: 0.7476670584 | G108: 7.657915354 | H108: 51.5 | I108: 0.005878995434 | J108: 12.98205974
A109: 3 | B109: 52 | C109: 0.4354 | D109: 0.2177 | E109: 1.386136842 | F109: 0.6930684208 | G109: 7.657915354 | H109: 52 | I109: 0.005936073059 | J109: 12.97823943
A110: 3 | B110: 52.5 | C110: 2.3472 | D110: 1.1736 | E110: 7.472531912 | F110: 3.736265956 | G110: 7.657915354 | H110: 52.5 | I110: 0.005993150685 | J110: 12.97696599
A111: 3 | B111: 53 | C111: 2.3301 | D111: 1.16505 | E111: 7.418092454 | F111: 3.709046227 | G111: 7.657915354 | H111: 53 | I111: 0.006050228311 | J111: 12.97473748
A112: 3 | B112: 53.5 | C112: 2.3413 | D112: 1.17065 | E112: 7.453748707 | F112: 3.726874354 | G112: 7.657915354 | H112: 53.5 | I112: 0.006107305936 | J112: 12.96104802
A113: 3 | B113: 54 | C113: 2.447 | D113: 1.2235 | E113: 7.790254597 | F113: 3.895127298 | G113: 7.657915354 | H113: 54 | I113: 0.006164383562 | J113: 12.95977459
A114: 3 | B114: 54.5 | C114: 2.6175 | D114: 1.30875 | E114: 8.333057379 | F114: 4.166528689 | G114: 7.657915354 | H114: 54.5 | I114: 0.006221461187 | J114: 12.9534074
A115: 3 | B115: 55 | C115: 2.8761 | D115: 1.43805 | E115: 9.156334796 | F115: 4.578167398 | G115: 7.657915354 | H115: 55 | I115: 0.006278538813 | J115: 12.94863201
A116: 3 | B116: 55.5 | C116: 3.1494 | D116: 1.5747 | E116: 10.02641104 | F116: 5.013205522 | G116: 7.657915354 | H116: 55.5 | I116: 0.006335616438 | J116: 12.94417498
A117: 3 | B117: 56 | C117: 3.5012 | D117: 1.7506 | E117: 11.14639943 | F117: 5.573199713 | G117: 7.657915354 | H117: 56 | I117: 0.006392694064 | J117: 12.93526091
A118: 3 | B118: 56.5 | C118: 3.4348 | D118: 1.7174 | E118: 10.93500878 | F118: 5.467504391 | G118: 7.657915354 | H118: 56.5 | I118: 0.006449771689 | J118: 12.93494255
A119: 3 | B119: 57 | C119: 3.2872 | D119: 1.6436 | E119: 10.4651103 | F119: 5.232555151 | G119: 7.657915354 | H119: 57 | I119: 0.006506849315 | J119: 12.92730193
A120: 3 | B120: 57.5 | C120: 3.1992 | D120: 1.5996 | E120: 10.18495403 | F120: 5.092477014 | G120: 7.657915354 | H120: 57.5 | I120: 0.006563926941 | J120: 12.92029802
A121: 3 | B121: 58 | C121: 3.1123 | D121: 1.55615 | E121: 9.908299706 | F121: 4.954149853 | G121: 7.657915354 | H121: 58 | I121: 0.006621004566 | J121: 12.91552263
A122: 3 | B122: 58.5 | C122: 3.0625 | D122: 1.53125 | E122: 9.749756723 | F122: 4.874878362 | G122: 7.657915354 | H122: 58.5 | I122: 0.006678082192 | J122: 12.90692692
A123: 3 | B123: 59 | C123: 2.9324 | D123: 1.4662 | E123: 9.33557114 | F123: 4.66778557 | G123: 7.657915354 | H123: 59 | I123: 0.006735159817 | J123: 12.89196403
A124: 3 | B124: 59.5 | C124: 3.0017 | D124: 1.50085 | E124: 9.556194206 | F124: 4.778097103 | G124: 7.657915354 | H124: 59.5 | I124: 0.006792237443 | J124: 12.88973552
A125: 3 | B125: 60 | C125: 2.8574 | D125: 1.4287 | E125: 9.096801587 | F125: 4.548400794 | G125: 7.657915354 | H125: 60 | I125: 0.006849315068 | J125: 12.87954802
A126: 3 | B126: 60.5 | C126: 2.9532 | D126: 1.4766 | E126: 9.401789896 | F126: 4.700894948 | G126: 7.657915354 | H126: 60.5 | I126: 0.006906392694 | J126: 12.8789113
A127: 3 | B127: 61 | C127: 2.9116 | D127: 1.4558 | E127: 9.269352384 | F127: 4.634676192 | G127: 7.657915354 | H127: 61 | I127: 0.00696347032 | J127: 12.87859294
A128: 3 | B128: 61.5 | C128: 2.8812 | D128: 1.4406 | E128: 9.172571125 | F128: 4.586285563 | G128: 7.657915354 | H128: 61.5 | I128: 0.007020547945 | J128: 12.87636442
A129: 3 | B129: 62 | C129: 2.8236 | D129: 1.4118 | E129: 8.989196109 | F129: 4.494598055 | G129: 7.657915354 | H129: 62 | I129: 0.007077625571 | J129: 12.86904216
A130: 3 | B130: 62.5 | C130: 2.8037 | D130: 1.40185 | E130: 8.925842588 | F130: 4.462921294 | G130: 7.657915354 | H130: 62.5 | I130: 0.007134703196 | J130: 12.867132
A131: 3 | B131: 63 | C131: 2.8476 | D131: 1.4238 | E131: 9.065602366 | F131: 4.532801183 | G131: 7.657915354 | H131: 63 | I131: 0.007191780822 | J131: 12.86585856
A132: 3 | B132: 63.5 | C132: 2.9061 | D132: 1.45305 | E132: 9.251842617 | F132: 4.625921308 | G132: 7.657915354 | H132: 63.5 | I132: 0.007248858447 | J132: 12.846757
A133: 3 | B133: 64 | C133: 3.0759 | D133: 1.53795 | E133: 9.792416883 | F133: 4.896208442 | G133: 7.657915354 | H133: 64 | I133: 0.007305936073 | J133: 12.83847965
A134: 3 | B134: 64.5 | C134: 3.4194 | D134: 1.7097 | E134: =C134*$E$2 -> 10.88598143 | F134: 5.442990717 | G134: 7.657915354 | H134: 64.5 | I134: 0.007363013699 | J134: 12.8333859
A135: =INT(B135/24)+1 -> 3 | B135: 65 | C135: 3.7008 | D135: =C135*0.5 -> 1.8504 | E135: 11.78184479 | F135: =E135*0.5 -> 5.890922397 | G135: =IF(A135<=$N$42,$O$42,IF(A135<=$N$43,$O$43,IF(A135<=$N$44,$O$44,IF(A135<=$N$45,$O$45,IF(A135<=$N$46,$O$46,IF(A135<=$N$47,$O$47,IF(A135<=$N$48,$O$48,IF(A135<=$N$49,$O$49,IF(A135<=$N$50,$O$50,IF(A135<=$N$51,$O$51,IF(A135<=$N$52,$O$52,IF(A135<=$N$53,$O$53)))))))))))) -> 7.657915354 | H135: =I135*8760 -> 65 | I135: 0.007420091324 | J135: 12.82415348
A136: 3 | B136: 65.5 | C136: 3.9679 | D136: 1.98395 | E136: 12.63218276 | F136: 6.31609138 | G136: 7.657915354 | H136: 65.5 | I136: 0.00747716895 | J136: 12.81905973
A137: 3 | B137: 66 | C137: 4.063 | D137: 2.0315 | E137: 12.93494255 | F137: 6.467471276 | G137: 7.657915354 | H137: 66 | I137: =1/17520+I136 -> 0.007534246575 | J137: 12.8146027
A138: 3 | B138: 66.5 | C138: 4.1999 | D138: 2.09995 | E138: 13.37077658 | F138: 6.685388288 | G138: 7.657915354 | H138: 66.5 | I138: 0.007591324201 | J138: 12.80696207
A139: 3 | B139: 67 | C139: 4.1913 | D139: 2.09565 | E139: 13.34339767 | F139: 6.671698833 | G139: 7.657915354 | H139: 67 | I139: 0.007648401826 | J139: 12.80632535
A140: 3 | B140: 67.5 | C140: 4.2736 | D140: 2.1368 | E140: 13.60540746 | F140: 6.802703728 | G140: 7.657915354 | H140: 67.5 | I140: 0.007705479452 | J140: 12.79295426
A141: 3 | B141: 68 | C141: 3.9676 | D141: 1.9838 | E141: 12.63122768 | F141: 6.315613841 | G141: 7.657915354 | H141: 68 | I141: 0.007762557078 | J141: 12.7926359
A142: 3 | B142: 68.5 | C142: 3.9883 | D142: 1.99415 | E142: 12.69712808 | F142: 6.348564039 | G142: 7.657915354 | H142: 68.5 | I142: 0.007819634703 | J142: 12.77958316
A143: 3 | B143: 69 | C143: 3.9418 | D143: 1.9709 | E143: 12.54909096 | F143: 6.274545478 | G143: 7.657915354 | H143: 69 | I143: 0.007876712329 | J143: 12.77735465
A144: 3 | B144: 69.5 | C144: 3.944 | D144: 1.972 | E144: 12.55609486 | F144: 6.278047431 | G144: 7.657915354 | H144: 69.5 | I144: 0.007933789954 | J144: 12.77480777
A145: 3 | B145: 70 | C145: 3.7631 | D145: 1.88155 | E145: 11.9801827 | F145: 5.990091351 | G145: 7.657915354 | H145: 70 | I145: 0.00799086758 | J145: 12.77385269
A146: 3 | B146: 70.5 | C146: 3.6944 | D146: 1.8472 | E146: 11.76146979 | F146: 5.880734896 | G146: 7.657915354 | H146: 70.5 | I146: 0.008047945205 | J146: 12.76844058
A147: 3 | B147: 71 | C147: 1.5241 | D147: 0.76205 | E147: 4.852115664 | F147: 2.426057832 | G147: 7.657915354 | H147: 71 | I147: 0.008105022831 | J147: 12.76780387
A148: 3 | B148: 71.5 | C148: 1.2672 | D148: 0.6336 | E148: 4.034250357 | F148: 2.017125179 | G148: 7.657915354 | H148: 71.5 | I148: 0.008162100457 | J148: 12.75666129
A149: 4 | B149: 72 | C149: 1.0136 | D149: 0.5068 | E149: 3.226890911 | F149: 1.613445455 | G149: 7.657915354 | H149: 72 | I149: 0.008219178082 | J149: 12.75093082
A150: 4 | B150: 72.5 | C150: 0.7804 | D150: 0.3902 | E150: 2.484476783 | F150: 1.242238391 | G150: 7.657915354 | H150: 72.5 | I150: 0.008276255708 | J150: 12.74838394
A151: 4 | B151: 73 | C151: 0.669 | D151: 0.3345 | E151: 2.129824407 | F151: 1.064912204 | G151: 7.657915354 | H151: 73 | I151: 0.008333333333 | J151: 12.74742886
A152: 4 | B152: 73.5 | C152: 0.546 | D152: 0.273 | E152: 1.738242342 | F152: 0.8691211708 | G152: 7.657915354 | H152: 73.5 | I152: 0.008390410959 | J152: 12.74742886
A153: 4 | B153: 74 | C153: 0.5275 | D153: 0.26375 | E153: 1.679345852 | F153: 0.839672926 | G153: 7.657915354 | H153: 74 | I153: 0.008447488584 | J153: 12.73946988
A154: 4 | B154: 74.5 | C154: 0.4771 | D154: 0.23855 | E154: 1.518892713 | F154: 0.7594463564 | G154: 7.657915354 | H154: 74.5 | I154: 0.00850456621 | J154: 12.73946988
A155: 4 | B155: 75 | C155: 0.4403 | D155: 0.22015 | E155: 1.401736452 | F155: 0.7008682262 | G155: 7.657915354 | H155: 75 | I155: 0.008561643836 | J155: 12.73533121
A156: 4 | B156: 75.5 | C156: 0.4626 | D156: 0.2313 | E156: 1.472730599 | F156: 0.7363652996 | G156: 7.657915354 | H156: 75.5 | I156: 0.008618721461 | J156: 12.72800894
A157: 4 | B157: 76 | C157: 0.444 | D157: 0.222 | E157: 1.41351575 | F157: 0.7067578751 | G157: 7.657915354 | H157: 76 | I157: 0.008675799087 | J157: 12.72769058
A158: 4 | B158: 76.5 | C158: 2.459 | D158: 1.2295 | E158: 7.828457725 | F158: 3.914228862 | G158: 7.657915354 | H158: 76.5 | I158: 0.008732876712 | J158: 12.71431949
A159: 4 | B159: 77 | C159: 2.4511 | D159: 1.22555 | E159: 7.803307332 | F159: 3.901653666 | G159: 7.657915354 | H159: 77 | I159: 0.008789954338 | J159: 12.71145425
A160: 4 | B160: 77.5 | C160: 2.4438 | D160: 1.2219 | E160: 7.780067096 | F160: 3.890033548 | G160: 7.657915354 | H160: 77.5 | I160: 0.008847031963 | J160: 12.71018081
A161: 4 | B161: 78 | C161: 2.5134 | D161: 1.2567 | E161: 8.00164524 | F161: 4.00082262 | G161: 7.657915354 | H161: 78 | I161: 0.008904109589 | J161: 12.70986245
A162: 4 | B162: 78.5 | C162: 2.6183 | D162: 1.30915 | E162: 8.335604254 | F162: 4.167802127 | G162: 7.657915354 | H162: 78.5 | I162: 0.008961187215 | J162: 12.70922574
A163: 4 | B163: 79 | C163: 2.9306 | D163: 1.4653 | E163: 9.32984067 | F163: 4.664920335 | G163: 7.657915354 | H163: 79 | I163: 0.00901826484 | J163: 12.70094839
A164: 4 | B164: 79.5 | C164: 3.3471 | D164: 1.67355 | E164: 10.65580758 | F164: 5.327903792 | G164: 7.657915354 | H164: 79.5 | I164: 0.009075342466 | J164: 12.69840152
A165: 4 | B165: 80 | C165: 3.6258 | D165: 1.8129 | E165: 11.54307524 | F165: 5.771537621 | G165: 7.657915354 | H165: 80 | I165: 0.009132420091 | J165: 12.69712808
A166: 4 | B166: 80.5 | C166: 3.7038 | D166: 1.8519 | E166: 11.79139558 | F166: 5.895697788 | G166: 7.657915354 | H166: 80.5 | I166: 0.009189497717 | J166: 12.68503042
A167: 4 | B167: 81 | C167: 3.4367 | D167: 1.71835 | E167: 10.94105761 | F167: 5.470528805 | G167: 7.657915354 | H167: 81 | I167: 0.009246575342 | J167: 12.68280191
A168: 4 | B168: 81.5 | C168: 3.1819 | D168: 1.59095 | E168: 10.12987785 | F168: 5.064938925 | G168: 7.657915354 | H168: 81.5 | I168: 0.009303652968 | J168: 12.66656558
A169: 4 | B169: 82 | C169: 3.1611 | D169: 1.58055 | E169: 10.06365909 | F169: 5.031829547 | G169: 7.657915354 | H169: 82 | I169: 0.009360730594 | J169: 12.66147183
A170: 4 | B170: 82.5 | C170: 3.0154 | D170: 1.5077 | E170: 9.599809444 | F170: 4.799904722 | G170: 7.657915354 | H170: 82.5 | I170: 0.009417808219 | J170: 12.65988003
A171: 4 | B171: 83 | C171: 3.0577 | D171: 1.52885 | E171: 9.734475472 | F171: 4.867237736 | G171: 7.657915354 | H171: 83 | I171: 0.009474885845 | J171: 12.65860659
A172: 4 | B172: 83.5 | C172: 2.8725 | D172: 1.43625 | E172: 9.144873857 | F172: 4.572436929 | G172: 7.657915354 | H172: 83.5 | I172: 0.00953196347 | J172: 12.65669643
A173: 4 | B173: 84 | C173: 2.897 | D173: 1.4485 | E173: 9.222871911 | F173: 4.611435955 | G173: 7.657915354 | H173: 84 | I173: 0.009589041096 | J173: 12.65351284
A174: 4 | B174: 84.5 | C174: 3.0012 | D174: 1.5006 | E174: 9.554602409 | F174: 4.777301205 | G174: 7.657915354 | H174: 84.5 | I174: 0.009646118721 | J174: 12.6522394
A175: 4 | B175: 85 | C175: 2.9379 | D175: 1.46895 | E175: 9.353080907 | F175: 4.676540453 | G175: 7.657915354 | H175: 85 | I175: 0.009703196347 | J175: 12.65001089
A176: 4 | B176: 85.5 | C176: 2.949 | D176: 1.4745 | E176: 9.388418801 | F176: 4.6942094 | G176: 7.657915354 | H176: 85.5 | I176: 0.009760273973 | J176: 12.64619057
A177: 4 | B177: 86 | C177: 2.9469 | D177: 1.47345 | E177: 9.381733253 | F177: 4.690866627 | G177: 7.657915354 | H177: 86 | I177: 0.009817351598 | J177: 12.64396206
A178: 4 | B178: 86.5 | C178: 2.8928 | D178: 1.4464 | E178: 9.209500816 | F178: 4.604750408 | G178: 7.657915354 | H178: 86.5 | I178: 0.009874429224 | J178: 12.64077846
A179: 4 | B179: 87 | C179: 2.9083 | D179: 1.45415 | E179: 9.258846524 | F179: 4.629423262 | G179: 7.657915354 | H179: 87 | I179: 0.009931506849 | J179: 12.63441128
A180: 4 | B180: 87.5 | C180: 3.1749 | D180: 1.58745 | E180: 10.10759269 | F180: 5.053796346 | G180: 7.657915354 | H180: 87.5 | I180: 0.009988584475 | J180: 12.63250112
A181: 4 | B181: 88 | C181: 3.3051 | D181: 1.65255 | E181: 10.52209664 | F181: 5.261048318 | G181: 7.657915354 | H181: 88 | I181: 0.0100456621 | J181: 12.63218276
A182: 4 | B182: 88.5 | C182: 3.5207 | D182: 1.76035 | E182: 11.20847951 | F182: 5.604239754 | G182: 7.657915354 | H182: 88.5 | I182: 0.01010273973 | J182: 12.63122768
A183: 4 | B183: 89 | C183: 3.9047 | D183: 1.95235 | E183: 12.43097962 | F183: 6.215489809 | G183: 7.657915354 | H183: 89 | I183: 0.01015981735 | J183: 12.62995424
A184: 4 | B184: 89.5 | C184: 4.2919 | D184: 2.14595 | E184: 13.66366723 | F184: 6.831833613 | G184: 7.657915354 | H184: 89.5 | I184: 0.01021689498 | J184: 12.62422377
A185: 4 | B185: 90 | C185: 4.3992 | D185: 2.1996 | E185: 14.00526687 | F185: 7.002633433 | G185: 7.657915354 | H185: 90 | I185: 0.0102739726 | J185: 12.61753823
A186: 4 | B186: 90.5 | C186: 4.5406 | D186: 2.2703 | E186: 14.45542706 | F186: 7.227713531 | G186: 7.657915354 | H186: 90.5 | I186: 0.01033105023 | J186: 12.61212612
A187: 4 | B187: 91 | C187: 4.2647 | D187: 2.13235 | E187: 13.57707347 | F187: 6.788536734 | G187: 7.657915354 | H187: 91 | I187: 0.01038812785 | J187: 12.61117104
A188: 4 | B188: 91.5 | C188: 4.1639 | D188: 2.08195 | E188: 13.25616719 | F188: 6.628083595 | G188: 7.657915354 | H188: 91.5 | I188: 0.01044520548 | J188: 12.61021596
A189: 4 | B189: 92 | C189: 4.106 | D189: 2.053 | E189: 13.0718371 | F189: 6.535918548 | G189: 7.657915354 | H189: 92 | I189: 0.01050228311 | J189: 12.60798745
A190: 4 | B190: 92.5 | C190: 3.9762 | D190: 1.9881 | E190: 12.65860659 | F190: 6.329303295 | G190: 7.657915354 | H190: 92.5 | I190: 0.01055936073 | J190: 12.59843666
A191: 4 | B191: 93 | C191: 4.0226 | D191: 2.0113 | E191: 12.80632535 | F191: 6.403162677 | G191: 7.657915354 | H191: 93 | I191: 0.01061643836 | J191: 12.59684487
A192: 4 | B192: 93.5 | C192: 3.9358 | D192: 1.9679 | E192: 12.52998939 | F192: 6.264994696 | G192: 7.657915354 | H192: 93.5 | I192: 0.01067351598 | J192: 12.59015932
A193: 4 | B193: 94 | C193: 3.7619 | D193: 1.88095 | E193: 11.97636239 | F193: 5.988181195 | G193: 7.657915354 | H193: 94 | I193: 0.01073059361 | J193: 12.58824916
A194: 4 | B194: 94.5 | C194: 3.6595 | D194: 1.82975 | E194: 11.65036236 | F194: 5.82518118 | G194: 7.657915354 | H194: 94.5 | I194: 0.01078767123 | J194: 12.58506557
A195: 4 | B195: 95 | C195: 1.5085 | D195: 0.75425 | E195: 4.802451597 | F195: 2.401225799 | G195: 7.657915354 | H195: 95 | I195: 0.01084474886 | J195: 12.5809269
A196: 4 | B196: 95.5 | C196: 1.2031 | D196: 0.60155 | E196: 3.83018198 | F196: 1.91509099 | G196: 7.657915354 | H196: 95.5 | I196: 0.01090182648 | J196: 12.5793351
A197: 5 | B197: 96 | C197: 1.147 | D197: 0.5735 | E197: 3.651582355 | F197: 1.825791177 | G197: 7.657915354 | H197: 96 | I197: 0.01095890411 | J197: 12.57233119
A198: 5 | B198: 96.5 | C198: 0.7461 | D198: 0.37305 | E198: =C198*$E$2 -> 2.375279507 | F198: 1.187639754 | G198: 7.657915354 | H198: 96.5 | I198: 0.01101598174 | J198: 12.5691476
A199: =INT(B199/24)+1 -> 5 | B199: 97 | C199: 0.6403 | D199: =C199*0.5 -> 0.32015 | E199: 2.038455259 | F199: =E199*0.5 -> 1.019227629 | G199: =IF(A199<=$N$42,$O$42,IF(A199<=$N$43,$O$43,IF(A199<=$N$44,$O$44,IF(A199<=$N$45,$O$45,IF(A199<=$N$46,$O$46,IF(A199<=$N$47,$O$47,IF(A199<=$N$48,$O$48,IF(A199<=$N$49,$O$49,IF(A199<=$N$50,$O$50,IF(A199<=$N$51,$O$51,IF(A199<=$N$52,$O$52,IF(A199<=$N$53,$O$53)))))))))))) -> 7.657915354 | H199: =I199*8760 -> 97 | I199: 0.01107305936 | J199: 12.565964
A200: 5 | B200: 97.5 | C200: 0.5466 | D200: 0.2733 | E200: 1.740152498 | F200: 0.870076249 | G200: 7.657915354 | H200: 97.5 | I200: 0.01113013699 | J200: 12.56309877
... 4300 more rows
